[Event "Titled Tuesday Blitz February 22 Late 2022"]
[White "Goltsev, Dmitry"]
[Black "Quirke, Jeffrey"]
[WhiteFideId "24176710"]
[BlackFideId "2013029"]
[WhiteElo "2273"]
[BlackElo "2214"]
[Result "1-0"]
[Round "01"]
[TimeControl "180+1"]
[Date "2022.02.23"]
[WhiteClock "0:01:25"]
[BlackClock "0:00:01"]

1. e4 {[%clk 0:03:00]}  c5 {[%clk 0:03:00]} 2. Nf3 {[%clk 0:03:00]}  e6 {[%clk 0:03:00]} 3. d4 {[%clk 0:03:01]}  cxd4 {[%clk 0:03:01]} 4. Nxd4 {[%clk 0:03:02]}  a6 {[%clk 0:03:02]} 5. Nc3 {[%clk 0:03:02]}  b5 {[%clk 0:03:01]} 6. Be2 {[%clk 0:03:03]}  Bb7 {[%clk 0:03:00]} 7. a3 {[%clk 0:03:03]}  Nc6 {[%clk 0:02:57]} 8. O-O {[%clk 0:03:02]}  d6 {[%clk 0:02:52]} 9. Be3 {[%clk 0:03:01]}  Nf6 {[%clk 0:02:51]} 10. f4 {[%clk 0:03:02]}  Be7 {[%clk 0:02:44]} 11. Bf3 {[%clk 0:03:01]}  Qc7 {[%clk 0:02:42]} 12. Qe2 {[%clk 0:02:55]}  O-O {[%clk 0:02:32]} 13. Rad1 {[%clk 0:02:54]}  Nxd4 {[%clk 0:02:29]} 14. Bxd4 {[%clk 0:02:55]}  e5 {[%clk 0:02:20]} 15. Be3 {[%clk 0:02:52]}  Rfe8 {[%clk 0:02:15]} 16. g4 {[%clk 0:02:51]}  exf4 {[%clk 0:02:10]} 17. Bxf4 {[%clk 0:02:51]}  Nd7 {[%clk 0:02:06]} 18. Kh1 {[%clk 0:02:47]}  Ne5 {[%clk 0:01:47]} 19. Bxe5 {[%clk 0:02:43]}  dxe5 {[%clk 0:01:48]} 20. Nd5 {[%clk 0:02:44]}  Qc5 {[%clk 0:01:31]} 21. c3 {[%clk 0:02:39]}  Bf8 {[%clk 0:01:16]} 22. Bg2 {[%clk 0:02:37]}  Rad8 {[%clk 0:01:10]} 23. g5 {[%clk 0:02:35]}  Qc6 {[%clk 0:00:48]} 24. Qg4 {[%clk 0:02:28]}  Qg6 {[%clk 0:00:46]} 25. h4 {[%clk 0:02:25]}  h5 {[%clk 0:00:40]} 26. Qe2 {[%clk 0:02:19]}  Bxd5 {[%clk 0:00:39]} 27. exd5 {[%clk 0:02:20]}  e4 {[%clk 0:00:39]} 28. Rd4 {[%clk 0:02:18]}  e3 {[%clk 0:00:29]} 29. Rdf4 {[%clk 0:02:17]}  Bd6 {[%clk 0:00:21]} 30. Rxf7 {[%clk 0:02:11]}  Rf8 {[%clk 0:00:09]} 31. Rxf8+ {[%clk 0:02:07]}  Rxf8 {[%clk 0:00:09]} 32. Qxe3 {[%clk 0:01:57]}  Rxf1+ {[%clk 0:00:08]} 33. Bxf1 {[%clk 0:01:58]}  Qf7 {[%clk 0:00:04]} 34. Bg2 {[%clk 0:01:47]}  Qf5 {[%clk 0:00:04]} 35. Qe8+ {[%clk 0:01:35]}  Bf8 {[%clk 0:00:04]} 36. Qe6+ {[%clk 0:01:35]}  Qxe6 {[%clk 0:00:03]} 37. dxe6 {[%clk 0:01:36]}  Bd6 {[%clk 0:00:02]} 38. Bd5 {[%clk 0:01:34]}  Kf8 {[%clk 0:00:02]} 39. Kg2 {[%clk 0:01:35]}  Ke7 {[%clk 0:00:02]} 40. Kf3 {[%clk 0:01:34]}  a5 {[%clk 0:00:02]} 41. Bc6 {[%clk 0:01:28]}  b4 {[%clk 0:00:01]} 42. axb4 {[%clk 0:01:28]}  axb4 {[%clk 0:00:02]} 43. Bd5 {[%clk 0:01:29]}  bxc3 {[%clk 0:00:02]} 44. bxc3 {[%clk 0:01:30]}  Bc5 {[%clk 0:00:01]} 45. Kg3 {[%clk 0:01:27]}  Be3 {[%clk 0:00:01]} 46. c4 {[%clk 0:01:27]}  Bc5 {[%clk 0:00:02]} 47. Bf3 {[%clk 0:01:24]}  g6 {[%clk 0:00:02]} 48. Be4 {[%clk 0:01:25]}  Kxe6 {[%clk 0:00:02]} 49. Bxg6 {[%clk 0:01:25]}  Bd4 {[%clk 0:00:01]} 50. Bxh5 {[%clk 0:01:25]}  Ke7 {[%clk 0:00:01]} 51. Bg4 {[%clk 0:01:25]} 1-0


[Site "https://www.chess.com"]

[Event "Titled Tuesday Blitz February 22 Late 2022"]
[White "Golubovskis, Maksims"]
[Black "Guz, Ari"]
[WhiteFideId "11608528"]
[BlackFideId "2825759"]
[WhiteElo "2066"]
[BlackElo "1913"]
[Result "0-1"]
[Round "01"]
[TimeControl "180+1"]
[Date "2022.02.23"]
[WhiteClock "0:00:01"]
[BlackClock "0:02:23"]

1. e4 {[%clk 0:02:56]}  c5 {[%clk 0:02:52]} 2. Nf3 {[%clk 0:02:55]}  e6 {[%clk 0:02:52]} 3. d4 {[%clk 0:02:55]}  cxd4 {[%clk 0:02:53]} 4. Nxd4 {[%clk 0:02:55]}  a6 {[%clk 0:02:54]} 5. Bd3 {[%clk 0:02:42]}  Bc5 {[%clk 0:02:53]} 6. Nb3 {[%clk 0:02:39]}  Be7 {[%clk 0:02:53]} 7. Qg4 {[%clk 0:02:19]}  Nf6 {[%clk 0:02:53]} 8. Qg3 {[%clk 0:01:44]}  Nc6 {[%clk 0:02:49]} 9. Bf4 {[%clk 0:00:58]}  Nh5 {[%clk 0:02:46]} 10. Qg4 {[%clk 0:00:54]}  Nxf4 {[%clk 0:02:46]} 11. Qxf4 {[%clk 0:00:55]}  d6 {[%clk 0:02:46]} 12. O-O {[%clk 0:00:51]}  O-O {[%clk 0:02:46]} 13. N1d2 {[%clk 0:00:43]}  e5 {[%clk 0:02:43]} 14. Qe3 {[%clk 0:00:35]}  Bg5 {[%clk 0:02:38]} 15. Qg3 {[%clk 0:00:29]}  b5 {[%clk 0:02:32]} 16. c3 {[%clk 0:00:17]}  Be6 {[%clk 0:02:30]} 17. h4 {[%clk 0:00:16]}  Bxh4 {[%clk 0:02:30]} 18. Qe3 {[%clk 0:00:10]}  Bg5 {[%clk 0:02:30]} 19. Qe2 {[%clk 0:00:10]}  g6 {[%clk 0:02:26]} 20. f3 {[%clk 0:00:10]}  Bf4 {[%clk 0:02:25]} 21. a4 {[%clk 0:00:04]}  Qh4 {[%clk 0:02:25]} 22. Rf2 {[%clk 0:00:01]}  Qh2+ {[%clk 0:02:22]} 23. Kf1 {[%clk 0:00:01]}  Qh1# {[%clk 0:02:23]} 0-1


[Site "https://www.chess.com"]

[Event "Titled Tuesday Blitz February 22 Late 2022"]
[White "Gracia Alvarez, Gerardo Antonio"]
[Black "Kravtsiv, Martyn"]
[WhiteFideId "5109124"]
[BlackFideId "14113147"]
[WhiteElo "2139"]
[BlackElo "2694"]
[Result "1-0"]
[Round "01"]
[TimeControl "180+1"]
[Date "2022.02.22"]
[WhiteClock "0:00:06"]
[BlackClock "0:00:06"]

1. c4 {[%clk 0:03:00]}  e5 {[%clk 0:02:58]} 2. Nc3 {[%clk 0:03:00]}  Nf6 {[%clk 0:02:55]} 3. Nf3 {[%clk 0:02:57]}  Nc6 {[%clk 0:02:52]} 4. e4 {[%clk 0:02:57]}  g6 {[%clk 0:02:45]} 5. g3 {[%clk 0:02:52]}  Bg7 {[%clk 0:02:44]} 6. Bg2 {[%clk 0:02:52]}  O-O {[%clk 0:02:44]} 7. O-O {[%clk 0:02:52]}  d6 {[%clk 0:02:39]} 8. h3 {[%clk 0:02:48]}  Nd7 {[%clk 0:02:37]} 9. d3 {[%clk 0:02:45]}  Nc5 {[%clk 0:02:36]} 10. Be3 {[%clk 0:02:39]}  Nd4 {[%clk 0:02:35]} 11. b4 {[%clk 0:02:29]}  Nxf3+ {[%clk 0:02:19]} 12. Bxf3 {[%clk 0:02:28]}  Ne6 {[%clk 0:02:19]} 13. Bg2 {[%clk 0:02:20]}  Bd7 {[%clk 0:02:16]} 14. Qd2 {[%clk 0:02:17]}  Nd4 {[%clk 0:02:12]} 15. f4 {[%clk 0:02:12]}  c6 {[%clk 0:02:03]} 16. Kh2 {[%clk 0:02:06]}  Qe7 {[%clk 0:02:01]} 17. Rab1 {[%clk 0:02:00]}  Kh8 {[%clk 0:01:55]} 18. b5 {[%clk 0:01:59]}  Rab8 {[%clk 0:01:48]} 19. a4 {[%clk 0:01:47]}  f5 {[%clk 0:01:25]} 20. a5 {[%clk 0:01:35]}  Be6 {[%clk 0:01:15]} 21. a6 {[%clk 0:01:21]}  bxa6 {[%clk 0:01:11]} 22. bxc6 {[%clk 0:01:19]}  Qc7 {[%clk 0:00:49]} 23. Nd5 {[%clk 0:01:11]}  Qxc6 {[%clk 0:00:46]} 24. Bxd4 {[%clk 0:01:02]}  exd4 {[%clk 0:00:45]} 25. exf5 {[%clk 0:00:51]}  gxf5 {[%clk 0:00:43]} 26. Rfe1 {[%clk 0:00:47]}  Qd7 {[%clk 0:00:42]} 27. Qa5 {[%clk 0:00:46]}  Rxb1 {[%clk 0:00:24]} 28. Rxb1 {[%clk 0:00:46]}  Qc8 {[%clk 0:00:25]} 29. Nc7 {[%clk 0:00:38]}  Bd7 {[%clk 0:00:21]} 30. Nxa6 {[%clk 0:00:34]}  Bf6 {[%clk 0:00:21]} 31. Rb8 {[%clk 0:00:32]}  Qxb8 {[%clk 0:00:18]} 32. Nxb8 {[%clk 0:00:32]}  Rxb8 {[%clk 0:00:19]} 33. Qxa7 {[%clk 0:00:32]}  Rd8 {[%clk 0:00:19]} 34. Qc7 {[%clk 0:00:29]}  Be8 {[%clk 0:00:19]} 35. Bd5 {[%clk 0:00:26]}  Bg6 {[%clk 0:00:18]} 36. Be6 {[%clk 0:00:22]}  Ra8 {[%clk 0:00:15]} 37. Qxd6 {[%clk 0:00:18]}  Bh5 {[%clk 0:00:15]} 38. Bxf5 {[%clk 0:00:15]}  Ra2+ {[%clk 0:00:15]} 39. Kg1 {[%clk 0:00:15]}  Ra1+ {[%clk 0:00:15]} 40. Kf2 {[%clk 0:00:15]}  Ra2+ {[%clk 0:00:15]} 41. Ke1 {[%clk 0:00:15]}  Kg7 {[%clk 0:00:11]} 42. Qd7+ {[%clk 0:00:14]}  Kf8 {[%clk 0:00:11]} 43. Qxh7 {[%clk 0:00:13]}  Ra1+ {[%clk 0:00:09]} 44. Kd2 {[%clk 0:00:13]}  Bf3 {[%clk 0:00:08]} 45. Be4 {[%clk 0:00:11]}  Ra2+ {[%clk 0:00:08]} 46. Kc1 {[%clk 0:00:11]}  Be2 {[%clk 0:00:07]} 47. Qf5 {[%clk 0:00:09]}  Kg7 {[%clk 0:00:06]} 48. Qd7+ {[%clk 0:00:07]}  Kf8 {[%clk 0:00:06]} 49. Bd5 {[%clk 0:00:07]}  Be7 {[%clk 0:00:06]} 50. Qc8+ {[%clk 0:00:06]}  Kg7 {[%clk 0:00:06]} 51. Qg8+ {[%clk 0:00:06]}  Kf6 {[%clk 0:00:06]} 52. Qf7# {[%clk 0:00:06]} 1-0


[Site "https://www.chess.com"]

[Event "Titled Tuesday Blitz February 22 Late 2022"]
[White "Guliyev, Namig"]
[Black "Moskvin, Anatoly"]
[WhiteFideId "13400363"]
[BlackFideId "24199990"]
[WhiteElo "2487"]
[BlackElo "2079"]
[Result "1-0"]
[Round "01"]
[TimeControl "180+1"]
[Date "2022.02.23"]
[WhiteClock "0:01:10"]
[BlackClock "0:00:02"]

1. e4 {[%clk 0:03:00]}  e5 {[%clk 0:02:57]} 2. Nf3 {[%clk 0:03:00]}  d5 {[%clk 0:02:56]} 3. Nxe5 {[%clk 0:02:59]}  dxe4 {[%clk 0:02:55]} 4. d4 {[%clk 0:02:56]}  Bd6 {[%clk 0:02:54]} 5. Nc4 {[%clk 0:02:55]}  Nf6 {[%clk 0:02:54]} 6. Nc3 {[%clk 0:02:55]}  Nc6 {[%clk 0:02:52]} 7. Be2 {[%clk 0:02:55]}  O-O {[%clk 0:02:52]} 8. g4 {[%clk 0:02:55]}  Bb4 {[%clk 0:02:44]} 9. g5 {[%clk 0:02:49]}  Nd5 {[%clk 0:02:43]} 10. Bd2 {[%clk 0:02:50]}  Nxd4 {[%clk 0:01:52]} 11. Nxd5 {[%clk 0:02:46]}  Bxd2+ {[%clk 0:01:52]} 12. Qxd2 {[%clk 0:02:41]}  Qxd5 {[%clk 0:01:52]} 13. Ne3 {[%clk 0:02:30]}  Qe5 {[%clk 0:01:47]} 14. O-O-O {[%clk 0:02:29]}  Nxe2+ {[%clk 0:01:44]} 15. Qxe2 {[%clk 0:02:28]}  Be6 {[%clk 0:01:45]} 16. h4 {[%clk 0:02:24]}  Rfd8 {[%clk 0:01:39]} 17. Rxd8+ {[%clk 0:02:22]}  Rxd8 {[%clk 0:01:38]} 18. Rd1 {[%clk 0:02:22]}  Rd6 {[%clk 0:01:33]} 19. Rxd6 {[%clk 0:02:18]}  Qxd6 {[%clk 0:01:34]} 20. Qb5 {[%clk 0:02:17]}  b6 {[%clk 0:01:18]} 21. Qe8+ {[%clk 0:02:13]}  Qf8 {[%clk 0:01:18]} 22. Qc6 {[%clk 0:02:13]}  h6 {[%clk 0:01:15]} 23. Qxc7 {[%clk 0:02:11]}  hxg5 {[%clk 0:01:14]} 24. hxg5 {[%clk 0:02:11]}  g6 {[%clk 0:00:51]} 25. Qxa7 {[%clk 0:02:05]}  Qd8 {[%clk 0:00:51]} 26. a4 {[%clk 0:02:01]}  Kg7 {[%clk 0:00:20]} 27. Qa6 {[%clk 0:01:37]}  Qd4 {[%clk 0:00:20]} 28. Qb5 {[%clk 0:01:34]}  Kg8 {[%clk 0:00:19]} 29. c3 {[%clk 0:01:32]}  Qd6 {[%clk 0:00:18]} 30. Qb4 {[%clk 0:01:31]}  Qd8 {[%clk 0:00:18]} 31. Qxe4 {[%clk 0:01:30]}  Qxg5 {[%clk 0:00:18]} 32. Qd4 {[%clk 0:01:29]}  Qg1+ {[%clk 0:00:16]} 33. Nd1 {[%clk 0:01:28]}  Bb3 {[%clk 0:00:16]} 34. a5 {[%clk 0:01:19]}  bxa5 {[%clk 0:00:15]} 35. c4 {[%clk 0:01:20]}  a4 {[%clk 0:00:15]} 36. c5 {[%clk 0:01:19]}  Bxd1 {[%clk 0:00:14]} 37. Qxd1 {[%clk 0:01:18]}  Qxf2 {[%clk 0:00:14]} 38. Qd5 {[%clk 0:01:16]}  Qe1+ {[%clk 0:00:13]} 39. Kc2 {[%clk 0:01:16]}  Qe2+ {[%clk 0:00:04]} 40. Kb1 {[%clk 0:01:15]}  a3 {[%clk 0:00:02]} 41. bxa3 {[%clk 0:01:14]}  Qe1+ {[%clk 0:00:02]} 42. Kb2 {[%clk 0:01:14]}  Qe2+ {[%clk 0:00:03]} 43. Kb3 {[%clk 0:01:14]}  Qe3+ {[%clk 0:00:03]} 44. Kb4 {[%clk 0:01:14]}  Qe1+ {[%clk 0:00:04]} 45. Ka4 {[%clk 0:01:12]}  Qh4+ {[%clk 0:00:02]} 46. Kb5 {[%clk 0:01:12]}  Qe7 {[%clk 0:00:02]} 47. c6 {[%clk 0:01:11]}  Qxa3 {[%clk 0:00:03]} 48. Qd8+ {[%clk 0:01:11]}  Kg7 {[%clk 0:00:03]} 49. Qd4+ {[%clk 0:01:11]}  Kh6 {[%clk 0:00:03]} 50. c7 {[%clk 0:01:11]}  Qb3+ {[%clk 0:00:02]} 51. Kc6 {[%clk 0:01:11]}  Qc2+ {[%clk 0:00:02]} 52. Kd6 {[%clk 0:01:11]}  g5 {[%clk 0:00:02]} 53. Qh8+ {[%clk 0:01:10]}  Kg6 {[%clk 0:00:02]} 54. c8=Q {[%clk 0:01:11]}  Qd3+ {[%clk 0:00:01]} 55. Ke7 {[%clk 0:01:10]}  Qc3 {[%clk 0:00:02]} 1-0


[Site "https://www.chess.com"]

[Event "Titled Tuesday Blitz February 22 Late 2022"]
[White "Hakemi, Arman"]
[Black "Thomas, Anysia"]
[WhiteFideId "22520805"]
[BlackFideId "670472"]
[WhiteElo "2208"]
[BlackElo "2002"]
[Result "1-0"]
[Round "01"]
[TimeControl "180+1"]
[Date "2022.02.23"]
[WhiteClock "0:00:20"]
[BlackClock "0:00:01"]

1. e4 {[%clk 0:03:00]}  c5 {[%clk 0:02:54]} 2. Nf3 {[%clk 0:03:00]}  g6 {[%clk 0:02:50]} 3. d4 {[%clk 0:02:28]}  cxd4 {[%clk 0:02:51]} 4. Qxd4 {[%clk 0:02:26]}  Nf6 {[%clk 0:02:51]} 5. e5 {[%clk 0:02:25]}  Nc6 {[%clk 0:02:51]} 6. Qa4 {[%clk 0:02:25]}  Nd5 {[%clk 0:02:51]} 7. Qe4 {[%clk 0:02:25]}  Nb6 {[%clk 0:02:49]} 8. Nc3 {[%clk 0:02:25]}  Bg7 {[%clk 0:02:49]} 9. Bf4 {[%clk 0:02:23]}  O-O {[%clk 0:02:46]} 10. O-O-O {[%clk 0:02:19]}  d5 {[%clk 0:02:16]} 11. exd6 {[%clk 0:02:18]}  Bf5 {[%clk 0:02:11]} 12. dxe7 {[%clk 0:02:11]}  Qxe7 {[%clk 0:01:33]} 13. Qxe7 {[%clk 0:01:40]}  Nxe7 {[%clk 0:01:34]} 14. Be5 {[%clk 0:01:33]}  f6 {[%clk 0:01:24]} 15. Bd6 {[%clk 0:01:31]}  Rfe8 {[%clk 0:01:19]} 16. Bb5 {[%clk 0:01:15]}  Nc6 {[%clk 0:01:19]} 17. Bxc6 {[%clk 0:01:05]}  bxc6 {[%clk 0:01:18]} 18. Rhe1 {[%clk 0:01:05]}  Bg4 {[%clk 0:01:06]} 19. Rxe8+ {[%clk 0:00:55]}  Rxe8 {[%clk 0:01:04]} 20. Re1 {[%clk 0:00:56]}  Rc8 {[%clk 0:00:58]} 21. Nd4 {[%clk 0:00:53]}  Nc4 {[%clk 0:00:56]} 22. Bf4 {[%clk 0:00:43]}  Bd7 {[%clk 0:00:54]} 23. Re7 {[%clk 0:00:41]}  Nb6 {[%clk 0:00:46]} 24. Ne6 {[%clk 0:00:37]}  Bxe6 {[%clk 0:00:35]} 25. Rxe6 {[%clk 0:00:38]}  f5 {[%clk 0:00:23]} 26. Bd2 {[%clk 0:00:27]}  Kf7 {[%clk 0:00:22]} 27. Re1 {[%clk 0:00:26]}  Bf6 {[%clk 0:00:21]} 28. b3 {[%clk 0:00:25]}  Rc7 {[%clk 0:00:17]} 29. Ne2 {[%clk 0:00:24]}  c5 {[%clk 0:00:16]} 30. c4 {[%clk 0:00:25]}  Nd7 {[%clk 0:00:16]} 31. Bc3 {[%clk 0:00:24]}  Ne5 {[%clk 0:00:14]} 32. Bxe5 {[%clk 0:00:23]}  Bxe5 {[%clk 0:00:15]} 33. Kc2 {[%clk 0:00:23]}  Re7 {[%clk 0:00:12]} 34. Nc1 {[%clk 0:00:22]}  Bxh2 {[%clk 0:00:11]} 35. Rxe7+ {[%clk 0:00:23]}  Kxe7 {[%clk 0:00:11]} 36. Nd3 {[%clk 0:00:19]}  Kd6 {[%clk 0:00:11]} 37. a3 {[%clk 0:00:20]}  a5 {[%clk 0:00:07]} 38. g3 {[%clk 0:00:20]}  g5 {[%clk 0:00:06]} 39. Kd2 {[%clk 0:00:20]}  f4 {[%clk 0:00:06]} 40. gxf4 {[%clk 0:00:21]}  Bxf4+ {[%clk 0:00:05]} 41. Ke2 {[%clk 0:00:20]}  Bh2 {[%clk 0:00:03]} 42. Kf3 {[%clk 0:00:21]}  h5 {[%clk 0:00:03]} 43. Ke4 {[%clk 0:00:21]}  g4 {[%clk 0:00:02]} 44. Kf5 {[%clk 0:00:21]}  Bg1 {[%clk 0:00:01]} 45. Kg5 {[%clk 0:00:20]} 1-0


[Site "https://www.chess.com"]

[Event "Titled Tuesday Blitz February 22 Late 2022"]
[White "Hambleton, Aman"]
[Black "Willathgamuwa, Kevin"]
[WhiteFideId "2606577"]
[BlackFideId "3214168"]
[WhiteElo "2552"]
[BlackElo "1943"]
[Result "1-0"]
[Round "01"]
[TimeControl "180+1"]
[Date "2022.02.23"]
[WhiteClock "0:00:01"]
[BlackClock "0:00:02"]

1. d4 {[%clk 0:02:46]}  Nf6 {[%clk 0:02:58]} 2. c4 {[%clk 0:02:43]}  e5 {[%clk 0:02:49]} 3. dxe5 {[%clk 0:02:38]}  Ng4 {[%clk 0:02:48]} 4. Nh3 {[%clk 0:02:38]}  Nxe5 {[%clk 0:02:47]} 5. e3 {[%clk 0:02:30]}  Nbc6 {[%clk 0:02:43]} 6. Be2 {[%clk 0:02:24]}  Bc5 {[%clk 0:02:29]} 7. Nf4 {[%clk 0:02:15]}  O-O {[%clk 0:02:24]} 8. O-O {[%clk 0:02:09]}  d6 {[%clk 0:02:23]} 9. Nc3 {[%clk 0:01:57]}  Be6 {[%clk 0:02:21]} 10. b3 {[%clk 0:01:53]}  Ne7 {[%clk 0:02:05]} 11. Na4 {[%clk 0:01:32]}  Bb6 {[%clk 0:01:59]} 12. Bb2 {[%clk 0:01:27]}  N5g6 {[%clk 0:01:30]} 13. Nxb6 {[%clk 0:00:47]}  axb6 {[%clk 0:01:28]} 14. Bf3 {[%clk 0:00:40]}  Nxf4 {[%clk 0:01:00]} 15. exf4 {[%clk 0:00:40]}  d5 {[%clk 0:00:44]} 16. f5 {[%clk 0:00:20]}  Bxf5 {[%clk 0:00:25]} 17. Qd4 {[%clk 0:00:17]}  f6 {[%clk 0:00:24]} 18. cxd5 {[%clk 0:00:18]}  Qd6 {[%clk 0:00:19]} 19. a4 {[%clk 0:00:18]}  Ra5 {[%clk 0:00:18]} 20. Ba3 {[%clk 0:00:18]}  Qd7 {[%clk 0:00:18]} 21. Rfe1 {[%clk 0:00:17]}  Re8 {[%clk 0:00:17]} 22. Bb4 {[%clk 0:00:16]}  Raa8 {[%clk 0:00:13]} 23. Rad1 {[%clk 0:00:14]}  Rad8 {[%clk 0:00:12]} 24. h3 {[%clk 0:00:11]}  Nc8 {[%clk 0:00:10]} 25. Rxe8+ {[%clk 0:00:09]}  Rxe8 {[%clk 0:00:10]} 26. d6 {[%clk 0:00:09]}  c5 {[%clk 0:00:10]} 27. Qd5+ {[%clk 0:00:03]}  Be6 {[%clk 0:00:10]} 28. Qxb7 {[%clk 0:00:03]}  cxb4 {[%clk 0:00:09]} 29. Qa6 {[%clk 0:00:02]}  Bxb3 {[%clk 0:00:06]} 30. Rd2 {[%clk 0:00:01]}  Bxa4 {[%clk 0:00:06]} 31. Qa8 {[%clk 0:00:01]}  Nxd6 {[%clk 0:00:03]} 32. Qd5+ {[%clk 0:00:01]}  Qf7 {[%clk 0:00:02]} 33. Qxd6 {[%clk 0:00:01]} 1-0


[Site "https://www.chess.com"]

[Event "Titled Tuesday Blitz February 22 Late 2022"]
[White "Jacobson, Brandon"]
[Black "Vusatiuk, Vladimir"]
[WhiteFideId "30901561"]
[BlackFideId "14118610"]
[WhiteElo "2362"]
[BlackElo "2157"]
[Result "0-1"]
[Round "01"]
[TimeControl "180+1"]
[Date "2022.02.22"]
[WhiteClock "0:00:04"]
[BlackClock "0:00:04"]

1. Nf3 {[%clk 0:03:00]}  Nf6 {[%clk 0:02:59]} 2. c4 {[%clk 0:03:01]}  e6 {[%clk 0:02:57]} 3. Nc3 {[%clk 0:03:01]}  d5 {[%clk 0:02:58]} 4. d4 {[%clk 0:03:01]}  Be7 {[%clk 0:02:57]} 5. Bf4 {[%clk 0:02:59]}  O-O {[%clk 0:02:56]} 6. a3 {[%clk 0:02:59]}  a6 {[%clk 0:02:48]} 7. e3 {[%clk 0:02:59]}  dxc4 {[%clk 0:02:48]} 8. Bxc4 {[%clk 0:02:57]}  b5 {[%clk 0:02:47]} 9. Be2 {[%clk 0:02:57]}  Bb7 {[%clk 0:02:47]} 10. O-O {[%clk 0:02:53]}  Nbd7 {[%clk 0:02:46]} 11. b4 {[%clk 0:02:51]}  c6 {[%clk 0:02:10]} 12. Qb3 {[%clk 0:02:48]}  a5 {[%clk 0:02:08]} 13. Nd2 {[%clk 0:02:34]}  Nb6 {[%clk 0:02:00]} 14. bxa5 {[%clk 0:02:17]}  Rxa5 {[%clk 0:02:01]} 15. Bg3 {[%clk 0:02:13]}  Nfd5 {[%clk 0:01:34]} 16. Nxd5 {[%clk 0:01:57]}  exd5 {[%clk 0:01:28]} 17. Rfc1 {[%clk 0:01:45]}  Ra4 {[%clk 0:00:59]} 18. Nb1 {[%clk 0:01:39]}  Qa8 {[%clk 0:00:53]} 19. f3 {[%clk 0:00:52]}  Nc4 {[%clk 0:00:47]} 20. e4 {[%clk 0:00:53]}  dxe4 {[%clk 0:00:30]} 21. fxe4 {[%clk 0:00:54]}  Nxa3 {[%clk 0:00:28]} 22. Nc3 {[%clk 0:00:44]}  Rxd4 {[%clk 0:00:27]} 23. Bf2 {[%clk 0:00:36]}  Rd7 {[%clk 0:00:18]} 24. Bg4 {[%clk 0:00:36]}  Rd3 {[%clk 0:00:17]} 25. Be2 {[%clk 0:00:34]}  Rd2 {[%clk 0:00:15]} 26. Be3 {[%clk 0:00:27]}  Rd7 {[%clk 0:00:15]} 27. Nb1 {[%clk 0:00:24]}  b4 {[%clk 0:00:14]} 28. Bc4 {[%clk 0:00:24]}  c5 {[%clk 0:00:11]} 29. Nxa3 {[%clk 0:00:20]}  bxa3 {[%clk 0:00:11]} 30. Rxa3 {[%clk 0:00:21]}  Qc8 {[%clk 0:00:10]} 31. Rf1 {[%clk 0:00:21]}  Bf6 {[%clk 0:00:09]} 32. Rxf6 {[%clk 0:00:13]}  gxf6 {[%clk 0:00:09]} 33. Bh6 {[%clk 0:00:14]}  Bxe4 {[%clk 0:00:08]} 34. Qb6 {[%clk 0:00:08]}  Rd1+ {[%clk 0:00:06]} 35. Kf2 {[%clk 0:00:08]}  Qf5+ {[%clk 0:00:07]} 36. Ke3 {[%clk 0:00:06]}  Rfd8 {[%clk 0:00:05]} 37. Ra7 {[%clk 0:00:03]}  Re1+ {[%clk 0:00:05]} 38. Be2 {[%clk 0:00:04]}  Rd3# {[%clk 0:00:04]} 0-1


[Site "https://www.chess.com"]

[Event "Titled Tuesday Blitz February 22 Late 2022"]
[White "Jaferian, Koosha"]
[Black "Van den Dikkenberg, Erik"]
[WhiteFideId "12507440"]
[BlackFideId "1005880"]
[WhiteElo "2027"]
[BlackElo "2118"]
[Result "0-1"]
[Round "01"]
[TimeControl "180+1"]
[Date "2022.02.23"]
[WhiteClock "0:02:09"]
[BlackClock "0:01:34"]

1. Nf3 {[%clk 0:03:00]}  Nf6 {[%clk 0:02:58]} 2. b3 {[%clk 0:03:00]}  g6 {[%clk 0:02:57]} 3. Bb2 {[%clk 0:03:01]}  Bg7 {[%clk 0:02:58]} 4. g3 {[%clk 0:03:02]}  O-O {[%clk 0:02:58]} 5. d4 {[%clk 0:03:03]}  d6 {[%clk 0:02:59]} 6. Bg2 {[%clk 0:03:04]}  c6 {[%clk 0:02:58]} 7. O-O {[%clk 0:03:04]}  Bg4 {[%clk 0:02:57]} 8. c4 {[%clk 0:03:04]}  Nbd7 {[%clk 0:02:57]} 9. Nc3 {[%clk 0:03:03]}  e5 {[%clk 0:02:53]} 10. e3 {[%clk 0:03:01]}  e4 {[%clk 0:02:52]} 11. Nxe4 {[%clk 0:02:53]}  Nxe4 {[%clk 0:02:51]} 12. Qc2 {[%clk 0:02:52]}  Nef6 {[%clk 0:02:45]} 13. h3 {[%clk 0:02:52]}  Bxf3 {[%clk 0:02:45]} 14. Bxf3 {[%clk 0:02:52]}  Rc8 {[%clk 0:02:44]} 15. Rfd1 {[%clk 0:02:52]}  Re8 {[%clk 0:02:41]} 16. Rac1 {[%clk 0:02:53]}  d5 {[%clk 0:02:38]} 17. Qe2 {[%clk 0:02:52]}  Ne4 {[%clk 0:02:33]} 18. Bg2 {[%clk 0:02:52]}  Ndf6 {[%clk 0:02:28]} 19. Qe1 {[%clk 0:02:47]}  Qd7 {[%clk 0:02:23]} 20. Qb4 {[%clk 0:02:47]}  b6 {[%clk 0:02:13]} 21. Qe1 {[%clk 0:02:47]}  Qf5 {[%clk 0:02:09]} 22. Qe2 {[%clk 0:02:45]}  h5 {[%clk 0:02:06]} 23. Kh2 {[%clk 0:02:38]}  h4 {[%clk 0:01:57]} 24. Bf3 {[%clk 0:02:33]}  hxg3+ {[%clk 0:01:55]} 25. fxg3 {[%clk 0:02:34]}  Nh5 {[%clk 0:01:50]} 26. g4 {[%clk 0:02:25]}  Qg5 {[%clk 0:01:43]} 27. Bxe4 {[%clk 0:02:18]}  Rxe4 {[%clk 0:01:42]} 28. gxh5 {[%clk 0:02:18]}  Rxe3 {[%clk 0:01:42]} 29. Qf2 {[%clk 0:02:14]}  Rce8 {[%clk 0:01:38]} 30. Rg1 {[%clk 0:02:14]}  Qxh5 {[%clk 0:01:34]} 31. Rce1 {[%clk 0:02:09]}  Re2 {[%clk 0:01:34]} 0-1


[Site "https://www.chess.com"]